Cogmind - Beta 13 @@@ ROGUE MODE // 2024.04.07 @ 16:29:36 Player: iwantthegold Result: Destroyed by Y-45 Defender with Beam Rifle Performance ------------- Evolutions (1) 500 Regions Visited (2) 400 Robots Destroyed (11) 55 Value Destroyed (421) 421 Prototype IDs (1) 20 Alien Tech Used (0) 0 Bonus (0) 0 TOTAL SCORE: 1396 Bonus ------- None Cogmind --------- Core Integrity 0/400 Matter 300/300 Energy 97/100 System Corruption 4% Temperature Cool (9) Movement Walking (120) Location -9/Materials Parts ------- > --- POWER (1) -------- (None) > --- PROPULSION (2) --- Aluminum Leg > --- UTILITY (3) ------ (None) > --- WEAPON (3) ------- Small Laser > --- INVENTORY (5) ---- Ion Engine Aluminum Leg Disposable Heat Sink Medium Storage Unit Propulsion Shielding Peak State ------------ > --- POWER ------------ Ion Engine > --- PROPULSION ------- Aluminum Leg Aluminum Leg > --- UTILITY ---------- Small Storage Unit Medium Matter Pod Hardened Light Armor Plating > --- WEAPON ----------- Beam Rifle Improved Medium Laser Assault Rifle > --- INVENTORY -------- Ion Engine Aluminum Leg Aluminum Leg Improved Aluminum Leg Shield Generator Small Laser Light Cannon Rocket Launcher [Rating: 14] Favorites ----------- Power Ion Engine Engine Ion Engine Propulsion Aluminum Leg Leg Aluminum Leg Wheel Wheel Utility Small Storage Unit Storage Small Storage Unit Protection Hardened Light Armor Plating Weapon Assault Rifle Energy Gun Beam Rifle Energy Cannon Beam Cannon Ballistic Gun Assault Rifle Ballistic Cannon Light Cannon Launcher Rocket Launcher Build | -11 -10 -9 ------- Run | Yrd Mat Mat Slots Evolved 2 | . . 2 Power . | . . . Propulsion . | . . . Utility 1 | . . 1 Weapon 1 | . . 1 Parts Attached 30 | 5 3 22 Power 4 | 1 1 2 Engine 4 | 1 1 2 Core . | . . . Reactor . | . . . Propulsion 9 | 2 . 7 Treads . | . . . Leg 7 | . . 7 Wheel 2 | 2 . . Hover . | . . . Flight . | . . . Utility 4 | 1 . 3 Device . | . . . Storage 2 | 1 . 1 Processor . | . . . Hackware . | . . . Protection 2 | . . 2 Artifact . | . . . Weapon 13 | 1 2 10 Energy Gun 6 | . . 6 Energy Cannon 1 | . . 1 Ballistic Gun 4 | 1 2 1 Ballistic Cannon 1 | . . 1 Launcher 1 | . . 1 Special Weapon . | . . . Impact Weapon . | . . . Slashing Weapon . | . . . Piercing Weapon . | . . . Special Melee Weapon . | . . . Unidentified Prototypes 1 | . . 1 Corrupted Parts 1 | . . 1 System Corruption 4 | . . 4 Parts Lost 15 | . . 15 Power 2 | . . 2 Propulsion 3 | . . 3 Utility 3 | . . 3 Weapon 7 | . . 7 Highest Loss Streak 11 | . . 11 To Critical Strikes . | . . . Average Slot Usage (%) 85 | . 85 85 Engine 11 | . 14 10 Leg 14 | . . 17 Wheel 7 | . 28 4 Storage 16 | . 14 16 Protection 6 | . . 7 Energy Gun 16 | . . 19 Ballistic Gun 10 | . 28 7 Naked Turns 10 | . . 10 Heaviest Build 25 | 9 14 25 Greatest Support 23 | 20 20 23 Greatest Overweight (x) 2 | . . 2 Average Overweight (x) . | . . . Largest Inventory Capacity 8 | 8 8 8 Average Capacity 7 | 7 8 7 Most Carried 8 | 7 8 8 Average Carried 7 | 3 7 7 Final Capacity 8 | 8 8 5 Final Carried 8 | 7 8 5 Class Distribution -------------------- 74% | Mutant 8% | Gunner 7% | Tank 5% | Scavenger-Mutant 3% | Scavenger-Tank Dominant Class ---------------- Mutant | -10/Materials Mutant | -9/Materials Resources | -11 -10 -9 ----------- Run | Yrd Mat Mat Matter Collected 648 | 226 96 326 Remotely . | . . . Salvage Created 417 | . 110 307 Parts 28 | . 7 21 Haulers Intercepted . | . . . Recyclers Shooed 1 | . . 1 Parts Field Recycled . | . . . Retrieved Matter . | . . . Parts Self-Destructed . | . . . Prevented . | . . . Kills | -11 -10 -9 ------- Run | Yrd Mat Mat Combat Hostiles Destroyed 10 | . 2 8 Guns 7 | . 2 5 Cannons 1 | . . 1 AOE 2 | . . 2 Classes Destroyed 4 | . 2 2 Operator 1 | . 1 . Grunt 7 | . 2 5 Duelist 1 | . . 1 Sentry 2 | . . 2 Best Kill Streak 2 | . 2 2 Combat Bots Only 2 | . 2 2 Max Kills in Single Turn 1 | . 1 1 Gunslinging . | . . . Exploded 1 | . . 1 Melee . | . . . Uniques/NPCs Destroyed . | . . . Combat | -11 -10 -9 -------- Run | Yrd Mat Mat Hostile Shots Fired 139 | . 7 132 Missed 30 | . 1 29 Damage Taken 1800 | . 69 1731 Core 404 | . . 404 Absorbed by Shields . | . . . Core Remaining (%) 100 | 100 100 . Volleys Fired 73 | . 13 60 Largest 3 | . 2 3 Hottest 141 | . 40 141 Shots Fired 124 | . 26 98 Gun 117 | . 26 91 Cannon 3 | . . 3 Launcher 4 | . . 4 Special . | . . . Kinetic 42 | . 26 16 Thermal 61 | . . 61 Explosive 4 | . . 4 Electromagnetic 17 | . . 17 Robot Hit Streak 7 | . 3 7 Robot Miss Streak 5 | . 2 5 Penetration Max . | . . . Secondary Targets . | . . . Shots Hit Robots 72 | . 11 61 Core Hits 23 | . 6 17 Critical Kills . | . . . Critical Parts Destroyed . | . . . Critical Strikes 5 | . . 5 Burn 4 | . . 4 Corrupt 1 | . . 1 Melee Attacks . | . . . Impact . | . . . Slashing . | . . . Piercing . | . . . Sneak Attacks . | . . . Combat Hostiles . | . . . Follow-up Attacks . | . . . Damage Inflicted 1218 | . 123 1095 Guns 946 | . 123 823 Cannons 53 | . . 53 Explosions 219 | . . 219 Melee . | . . . Ramming . | . . . Kinetic 295 | . 123 172 Thermal 621 | . . 621 Explosive 219 | . . 219 Electromagnetic 83 | . . 83 Impact . | . . . Slashing . | . . . Piercing . | . . . Highest Corruption 4 | . . 4 Average Corruption 4 | . . 4 Corruption Purged . | . . . Corruption Blocked . | . . . Effects 3 | . . 3 Message Errors 1 | . . 1 Matter Fused 1 | . . 1 Parts Rejected 1 | . . 1 Overload Shots . | . . . Overflow Damage 37 | . . 37 Projectiles . | . . . Explosions 37 | . . 37 Melee . | . . . Knockbacks . | . . . Impact . | . . . Kinetic . | . . . Secondary . | . . . Self-Inflicted Damage 71 | . . 71 Shots 3 | . . 3 Rammed . | . . . Targets Rammed . | . . . Kicked . | . . . Crushed . | . . . Highest Temperature 547 | . 6 547 Average Temperature 197 | . 6 205 Received Heat Transfer 579 | . 36 543 Effects 16 | . . 16 Shutdowns 2 | . . 2 Energy Bleed 1 | . . 1 Interference 2 | . . 2 Matter Decay 1 | . . 1 Short Circuit 3 | . . 3 Damage (major) 6 | . . 6 Damage (core) 1 | . . 1 Siege Activations . | . . . Robots Corrupted . | . . . Combat Hostiles . | . . . Parts Fried . | . . . Impact Corruptions . | . . . Robots Melted . | . . . Combat Hostiles . | . . . Parts Melted 1 | . . 1 Heat Transferred 1757 | . . 1757 Parts Sabotaged . | . . . Parts Stolen . | . . . Parts Stripped . | . . . Power Chain Reactions . | . . . Alert | -11 -10 -9 ------- Run | Yrd Mat Mat Peak Influence 166 | . 57 166 Initial 24 | . . 24 Average 50 | . 20 57 Maximum Alert Level . | . . . Low Security (%) 100 | 100 100 100 Level 1 . | . . . Level 2 . | . . . Level 3 . | . . . Level 4 . | . . . Level 5 . | . . . High Security . | . . . Max Security . | . . . Squads Dispatched 3 | . 2 1 Investigation . | . . . Extermination . | . . . Reinforcement 3 | . 2 1 Assault . | . . . Garrison . | . . . Intercept . | . . . Searches Triggered . | . . . Construction Impeded . | . . . Haulers Reinforced . | . . . Active Scanning Responses . | . . . Cargo Convoy Interrupts . | . . . Stealth | -11 -10 -9 --------- Run | Yrd Mat Mat Distress Signals . | . . . Communications Jammed . | . . . Distress Signals . | . . . Times Spotted 28 | . 5 23 Peak Tracking Total 6 | . 2 6 Tactical Retreats 7 | . . 7 Traps | -11 -10 -9 ------- Run | Yrd Mat Mat Traps Triggered . | . . . Indirectly . | . . . Trap Hack Attempts . | . . . Triggered . | . . . Disarmed . | . . . Reprogrammed . | . . . Reused . | . . . Traps Extracted . | . . . Installed . | . . . Triggered . | . . . Machines | -11 -10 -9 ---------- Run | Yrd Mat Mat Machines Disabled 3 | . . 3 Max in Single Turn 1 | . . 1 Machines Repaired . | . . . Machines Dismantled . | . . . Machines Sabotaged . | . . . Overloaded Fab Kills . | . . . Hacking | -11 -10 -9 --------- Run | Yrd Mat Mat Machines Accessed 5 | . 1 4 Terminals 4 | . 1 3 Fabricators . | . . . Repair Stations 1 | . . 1 Recycling Units . | . . . Scanalyzers . | . . . Garrison Access . | . . . Total Hacks 9 | . 3 6 Successful 6 | . 2 4 Failed 3 | . 1 2 Catastrophic . | . . . Database Lockouts . | . . . Manual . | . . . Terminals 7 | . 3 4 Fabricators . | . . . Repair Stations 2 | . . 2 Recycling Units . | . . . Scanalyzers . | . . . Garrison Access . | . . . Terminal Hacks 5 | . 2 3 Record 1 | . 1 . Alert Level 1 | . 1 . Dispatch Records 1 | . . 1 Investigation Status 1 | . . 1 Zone Layout 1 | . . 1 Fabricator Hacks . | . . . Repair Station Hacks 1 | . . 1 Scan Component 1 | . . 1 Recycling Unit Hacks . | . . . Scanalyzer . | . . . Garrison Access Hacks . | . . . Unauthorized Hacks . | . . . Terminals . | . . . Fabricators . | . . . Repair Stations . | . . . Recycling Units . | . . . Scanalyzers . | . . . Garrison Access . | . . . Data Cores Recovered . | . . . Used . | . . . Hacking Detections 1 | . . 1 Full Trace Events . | . . . Feedback Events . | . . . Feedback Blocked . | . . . Robot Schematics Acquired . | . . . Robots Built . | . . . Authchips . | . . . Time . | . . . Total Robot Build Rating . | . . . Part Schematics Acquired . | . . . Parts Built . | . . . Authchips . | . . . Time . | . . . Total Part Build Rating . | . . . Parts Repaired . | . . . Time . | . . . Parts Recycled . | . . . Recycled Matter . | . . . Retrieved Matter . | . . . Retrieved Components . | . . . Parts Scanalyzed . | . . . Part Schematics Acquired . | . . . Parts Damaged . | . . . Bothacking | -11 -10 -9 ------------ Run | Yrd Mat Mat Used RIF Installer . | . . . Robots Hacked . | . . . Non-combat . | . . . Combat . | . . . Robot Hacks Applied . | . . . Relay Couplers Released . | . . . Fabnet Peak Effective % . | . . . Robots Rewired . | . . . Allies Hacked . | . . . Hacks Repelled . | . . . Allies | -11 -10 -9 -------- Run | Yrd Mat Mat Total Allies . | . . . Largest Group . | . . . Highest-Rated Group . | . . . Highest-Rated Ally . | . . . Total Orders . | . . . Ally Attacks . | . . . Total Damage . | . . . Kills . | . . . Allies Corrupted . | . . . Allies Melted . | . . . Intel | -11 -10 -9 ------- Run | Yrd Mat Mat Robot Analysis Total . | . . . Derelict Logs Recovered . | . . . Drone Launches . | . . . Drone Recoveries . | . . . Exploration | -11 -10 -9 ------------- Run | Yrd Mat Mat Turns Passed 1366 | 55 194 1117 Spaces Moved 834 | 53 169 612 Core 31 | 4 . 27 Treads . | . . . Legs 405 | . . 405 Wheels 398 | 49 169 180 Hover . | . . . Flight . | . . . Fastest Speed 50 | 50 80 50 Average Speed 129 | 77 80 147 Slowest Speed 260 | 80 80 260 Overloaded Moves . | . . . Propulsion Burnouts . | . . . Robots Hopped . | . . . Cave-ins Triggered . | . . . Exploration Rate (%) 20 | 3 24 34 Regions Visited 2 Branch Regions . Pre-discovered Areas . | . . . Known Exits Taken . | . . . Unknown Exits Taken 2 | 1 1 . Scrap Searched . | . . . Spaces Dug . | . . . Terrain Destroyed 19 | . . 19 Melee . | . . . Projectile . | . . . AOE 19 | . . 19 Terrain Rammed . | . . . Walls Destroyed . | . . . Machines Disabled . | . . . Actions | -11 -10 -9 --------- Run | Yrd Mat Mat Total 1008 | 64 205 739 Wait 25 | . 12 13 Move 832 | 52 168 612 Hop . | . . . Pick Up 30 | 7 5 18 Fast Attach 12 | 5 . 7 Attach 9 | . 1 8 Detach . | . . . Swap 9 | . 2 7 Drop 18 | . 4 14 Fire 73 | . 13 60 Melee . | . . . Ram . | . . . Kick . | . . . Crush . | . . . Escape Stasis . | . . . Rewire . | . . . Trap . | . . . Miscellaneous . | . . . Route ------- -11/Scrapyard -10/Materials -9/Materials (discovered 1 exit: [*Min]) History --------- Turn | Location | Event 19 | -11/Scrapyard | Discovered new exit (range 15) 56 | -11/Scrapyard | Entered Materials 222 | -10/Materials | Discovered new exit (range 3) 250 | -10/Materials | Entered another Materials area 250 | -9/Materials | Evolved 2 slots: Utility x1, Weapon x1 443 | -9/Materials | Discovered new exit (range 7) 665 | -9/Materials | Build established: Mutant 1197 | -9/Materials | Core integrity fell below 50% 1218 | -9/Materials | Core integrity fell below 20% 1254 | -9/Materials | Lost 11 parts (1p2n3u5w) 1367 | -9/Materials | Destroyed by Y-45 Defender with Beam Rifle Last Messages --------------- 01248_ Acquired Propulsion Shielding. 01250_ Acquired Disposable Heat Sink. 01252_ G-34 Mercenary destroyed. 01256_ Beam Cannon destroyed. 01261_ Acquired Sml. Laser. 01271_ System corrupted: Imp. Aluminum Leg rejected. 01273_ L-31 Rogue destroyed. 01273_ T-07 Excavator is excavating. 01274_ U-05 Engineer lays Concrete. 01276_ Acquired 30 matter. 01278_ Acquired Imp. Aluminum Leg. 01282_ Acquired Aluminum Leg. 01283_ Acquired 31 matter. 01300_ System corrupted: Matter fused (-8). 01317_ Acquired 1 matter. 01329_ MQFD#ABGVXSD3C#QZG I:MWZ 01338_ Acquired Med. Storage Unit. 01356_ Y-45 Defender destroyed. 01358_ Ion Engine destroyed. 01364_ Imp. Aluminum Leg destroyed. Map ----- +----------------------------------------------------+ | | | | | | | | | | | ???????????????????????????????????????????? | | ???????????????????????????????????????????? | | ???????????????????????????????????????????? | | ???????????????????????????????????????????? | | ???????????????????????????????????????????? | | ???????????????????????????????????????????? | | ???????????????????????????????????????????? | | ???????????????????????????????????????????? | | ???????????????????????????????????????????? | | ???????????????????????????????????????????? | | ???????????????????????????????????????????? | | ???????????????????????????????????????????? | | ???????????????????????????????????????????? | | ???????????????????????????????????????????? | | ?????????????????????#####?????????????????? | | ?????????????????????# ??????????????????? | | ?????????????????????# ??????????????????? | | ?????????????????????# #??????????????????? | | ?????????????????????# Y###########????????? | | ?????????????????????# %Y!= #????????? | | ??????????????????#??# #@ #????????? | | ?????????????????# ??# # #????????? | | ?????????????????# ?# # """"""" #????????? | | ?????????????????# ?# # """"""" #????????? | | ????????????????### ## # """"""" #????????? | | ????????????????+ # """"""" #????????? | | ????????????????# # """"""" #????????? | | ????????????????###/## ####???####????????? | | ????????????#????# ! # ##########?????????? | | ???????????? #???# # # #?????????? | | ???????????? #???# + # """ #?????????? | | ???????????# #???# # # """ #?????????? | | ???????????# #???# # # """ #?????????? | | ???????????# #???# # # ##### #?? | | ???????????# #???# # / """ / #?? | | ???????????# #???##### # """ ##### #?? | | ????????##?# #???????# # """ #?????????? | | ????????# ## ###?????# # #?????????? | | ??####### ##????# ##########?????????? | | ??# = ###### #??????????????????? | | ?# # [ # ! #??????????????????? | | # """ # ! # #??????????????????? | | # """ # # #??????????????????? | | # """ # #??????????????????? | | # # """ #??????????????????? | +----------------------------------------------------+ Best States ------------- Heat Dissipation 28 Energy Generation 10 Energy Capacity 250 Matter Stores 351 Matter Capacity 400 Sight Range 16 Terrain Scan Density 10 Armor Coverage 150 Evasion (%) 55 Item Schematics ----------------- None Robot Schematics ------------------ None Fabricated ------------ Nothing Alien Tech Used ----------------- None Achievements -------------- None Challenges ------------ None Game ------ Seed CoolantAntimissileMaul Manual? 0 Play Time 00:21:50 Cumulative 5.9 hours Start 2024.04.07 @ 16:08:09 End 2024.04.07 @ 16:29:36 Sessions 1 Manual Loads 0 Difficulty Rogue Special Mode None Game No. 5 Rogue 5 Adventurer 0 Explorer 0 Win Type - Total 0 Types 0/0/0/0/0/0/0/0/0 Lore% 1 Gallery% 10 Achievement% 10 Wizard Run 0 Options --------- Layout 1 ASCII 0 Keyboard 0 Movement Mouse Keybinds 0 Fullscreen 1 Font 18/SmallcapsGlow Map View 54x44 Zoom Use 0% Tactical HUD 1 Map Filters NONE Filters NONE Steam 0 RUN: 4078c4f3-f95f-4101-9640-f1477a5e4ea0